{"text_format":"1","workbook":"xlsx","n_sheets":4,"sheets":["Sheet1","Industry","Employee","Source"],"not_rendered":{"charts":0,"images":1,"macros":1,"external_links":0,"defined_names":5,"comments":0,"pivot_tables":0},"unopened":[],"bounds":{"document_bytes":16777216,"sheet_cells":100000,"rows_first":2000,"rows_last":500,"rows_between":2000,"halvings":0,"cell_chars":16384,"cell_head_chars":4096},"cells_cut":0,"cells_raw":0,"read":"whole","date_system":"1900"}

{"sheet":"Sheet1","index":0,"n_rows":49,"n_cols":26,"rows_kept":49,"cut":false,"hidden":false,"merged":[[17,15,17,20],[17,21,17,24],[43,0,43,10],[15,1,15,3],[15,5,15,7],[44,0,44,10],[48,0,48,7],[19,0,19,2],[17,3,17,14],[46,0,46,7],[40,0,40,1],[18,0,18,2],[41,0,41,6],[1,11,1,13],[11,0,11,1],[14,1,14,3],[13,5,13,7],[14,5,14,7],[13,1,13,3],[12,1,12,3],[1,5,1,8],[3,5,3,7],[5,5,5,7],[4,5,4,10],[7,5,7,11]]}
[]
[null,null,null,null,null,"Knowledge of Design Week (KODW) 2019\n17 - 21 Jun 2019",null,null,null,null,null,"Group Registration Form - FoHKDC"]
[]
[null,null,null,null,null,"To: KODW 2019 Appointed Registration Venodor - EventXtra Limited"]
[null,null,null,null,null,"Address: Room09, 4/F, Block B, Hong Kong Industrial Centre, 489-491 Castle Peak Road, Cheung Sha Wan, Kowloon, Hong Kong"]
[null,null,null,null,null,"Email: KODW2019@eventxtra.com"]
[]
[null,null,null,null,null,"Please complete this group registration form in BLOCK LETTERS and email to KODW 2019 appointed registration vendor-EventXtra Limited at KODW2019@eventxtra.com \nUpon receipt of this form, EventXtra Limited will email the acknowledgement and the methods of paymetn to the contact person's email.\nRegistration is only valid upon receipt of the full registration fee. We accept payment by Hong Kong local cheque, bank transfer, crecit card, Alipay and WeChat Pay."]
[]
[]
[]
["Contact Person's Details"]
["Salutations:"]
["Family Name:",null,null,null,"Given Name:"]
["Company:",null,null,null,"Email:"]
["Country:",null,null,null,"Phone:"]
[]
[null,null,"Delegate Details","Ticket Selection\n(For updated information of the programme schedule, please visit www.kodw.org)",null,null,null,null,null,null,null,null,null,null,null,"Delegate Details",null,null,null,null,null,"Addition Information"]
["Regular Ticket Price",null,null,2400,1800,1000,1000,1000,2400,1500,2400,1500,1500,2400,1500]
["Forum/Workshop Date",null,null,"19-20Jun","19Jun Full-day","19Jun AM","19Jun PM","20Jun AM","17Jun Full-day","17Jun PM\n(Identical workshop to Workshop4)","18Jun Full-day","18Jun AM\n(Identical workshop to Workshop2)","18Jun PM","21Jun Full-day","21Jun AM"]
["No","Discount Code\n(Apply ONE VALID discount code per submission)","Participant's Name","Full Forum Pass (19-20 Jun): Liveable Smart City + Future Retail & Lifestyle + Digital Health","Same Day Forum Pass (19 Jun): Liveable Smart City + Future Retail & Lifestyle","Forum1 (19 Jun AM): Liveable Smart City","Forum2 (19 Jun PM): Future Retail & Lifestyle","Forum3 (20 Jun AM): Digital Health","Workshop1 (17 Jun): Breaking Space and Media Boundaries: Co-creating Augmented Experiences","Workshop2 (17 Jun PM): The LEGO® SERIOUS PLAY® Method: Envisioning Future Leadership for Change\n","Workshop3 (18 Jun): Design Thinking in a Day: advance tools for creativity and leadership (TBC)","Workshop4-Repeat (18 Jun AM):The LEGO® SERIOUS PLAY® Method:Envisioning Future Leadership for Change\n","Workshop5 (18 Jun PM): Masterclass by Javier Mariscal: Digital Drawing - Move in Hong Kong","Workshop6 (21 Jun): Designing for Digital and Service Transformation","Workshop7 (21 Jun AM): Sorting Wheat from Chaff: A Robust Approach to Emerging Technology Adoption","Company","Title","Email","Telephone","Country/Region","City","Company Industry\n(Please select an option)","Company Industry - Others (Please specify)","Company Size\n(Please select an option)","How did you hear about KODW 2019","Remarks for HIKDC"]
[1,"Buy 1 get 1 free"]
[2,"Buy 1 get 1 free"]
[3,"Buy 1 get 1 free"]
[4,"Buy 1 get 1 free"]
[5,"Buy 1 get 1 free"]
[6,"Buy 1 get 1 free"]
[7,"Buy 1 get 1 free"]
[8,"Buy 1 get 1 free"]
[9,"Buy 1 get 1 free"]
[10,"Buy 1 get 1 free"]
[11,"Buy 1 get 1 free"]
[12,"Buy 1 get 1 free"]
[13,"Buy 1 get 1 free"]
[14,"Buy 1 get 1 free"]
[15,"Buy 1 get 1 free"]
[]
["No of Tickets",null,null,{"$f":"SUM(D22:D37)","v":0},{"$f":"SUM(E22:E37)","v":0},0,0,0,0,0,0,0,0,0,0]
["Subtotal",null,null,{"$f":"D38*D$19","v":0},{"$f":"E38*E$19","v":0},0,0,0,0,0,0,0,0,0,0]
[]
["Total Amount BEFORE discount",null,{"$f":"SUM(D39:O39)","v":0}]
["Final Amount AFTER discount will be provided separately for payment settlement "]
[]
["Terms & Conditions\n1. The Organisers reserve the right to change the programme without prior notice.  \n2. Early bird / Supporting Organisation discount shall not be used in conjunction with other special offers. Any discounts are offered at the discretion of the Organiser.  \n3. Registration and payment are processed by KODW 2019 appointed registration vendor.  \n4. Payment should be settled in full within seven (7) working days after the registration has been submitted. Otherwise, the reserved seat(s) will be automatically released.  \n5. Payment should be settled via one of the payment methods as specified in ‘Payment Method’ section.  \n6. Registration will only be processed after full payment has been settled. Partial payment will not be accepted.  \n7. All payment settled is non-refundable under any circumstances.  \n8. Requests for cancellation shall only be considered if there is a change in the programme of the session concerned, and such requests should be made in writing to the Organiser prior to the commencement of the session. Late requests will not be entertained. Refund, if any, will only be processed after the completion of KODW 2019.  \n9. The information provided on this registration form will be used for the purpose of registration and for promoting HKDC and her relevant events. If you do not wish to receive such promotion materials, please indicate in corresponding option below.  \n10. These terms and conditions are prepared in both English and Chinese languages. In event of any discrepancy between the two language versions, the English version shall prevail.    "]
["           Your information will be added to Hong Kong Design Centre database, please tick this box if you do not wish to receive promotion materials from HKDC and her relevant events."]
[]
["  \nThis registration form is issued by Hong Kong Design Centre ©All rights reserved.  "]
[]
["Please send this registraion form to KODW2019@eventxtra.com for payment processing"]

{"sheet":"Industry","index":1,"n_rows":25,"n_cols":1,"rows_kept":25,"cut":false,"hidden":false,"merged":[]}
["Art & Culture"]
["Banking & Finance"]
["Brand & Business Development"]
["Consulting – Design"]
["Consulting – Others (Please specify)"]
["Design – Architecture & Space"]
["Design – Branding"]
["Design – Fashion"]
["Design – Graphic / Communications"]
["Design – Product"]
["Design – User Experience"]
["Design – Others (Please Specify)"]
["Education – Design"]
["Education – Others (Please Specify)"]
["Entertainment"]
["Government"]
["Industry Association / Non-Profit Organisation"]
["Logistics"]
["Manufacturing & Production"]
["Media & Communications"]
["Retail & Consumer Goods"]
["SME"]
["Start-up"]
["Technologies"]
["Others (Please Specify)"]

{"sheet":"Employee","index":2,"n_rows":6,"n_cols":1,"rows_kept":6,"cut":false,"hidden":false,"merged":[]}
["1-10 employees"]
["11-50 employees"]
["51-100 employees"]
["101-300 employees"]
["301-500 employees"]
["501 employees or above"]

{"sheet":"Source","index":3,"n_rows":12,"n_cols":1,"rows_kept":12,"cut":false,"hidden":false,"merged":[]}
["Print Newspaper & Magazine"]
["Online Newspaper & Magazine"]
["Email"]
["Search Engine (e.g. Google)"]
["Banner Advertising"]
["Outdoor Advertisement"]
["Facebook"]
["LinkedIn"]
["Wechat"]
["Colleagues & Friends"]
["Industry Association (Please specify)"]
["Others (Please specify)"]